fUSD/lending_fUSD_20251110
["ID","MTS","AMOUNT","RATE_DAILY","PERIOD"]
[393530245,1762771837856,-338.28,0.00034842,2]
[393530246,1762771837865,-169.17,0.00034842,2]
[393530247,1762771837875,-169.17,0.00034842,2]
[393530248,1762771837887,-169.17,0.00034842,2]
[393530249,1762771837896,-169.17,0.00034842,2]
[393530250,1762771837905,-337.67,0.00034842,2]
[393530251,1762771837915,-361.0,0.00034843,2]
[393530252,1762771837924,-150.0,0.00034852,2]
[393530253,1762771837934,-799.48118615,0.00034852,2]
[393530255,1762771837942,-150.0,0.00034852,2]
[393530257,1762771837951,-37041.88491804,0.00034852,2]
[393530259,1762771837960,-150.0,0.00034852,2]
[393530260,1762771837970,-1489.6828881,0.00034852,2]
[393530261,1762771837979,-500.0,0.00034867,30]
[393530262,1762771837988,-729.97,0.00034867,30]
[393530263,1762771837998,-1000.0,0.00034886,7]
[393530264,1762771838008,-11174.54175652,0.000349,60]
[393530265,1762771838017,-1123.94,0.000349,30]
[393530266,1762771838027,-161.81624729,0.000349,2]
[393530267,1762771838036,-157.37982075,0.00034932,30]
[393530268,1762771838046,-168.0,0.00034963,7]
[393530269,1762771838055,-517.4162361,0.0003499,2]
[393530270,1762771838065,-15.42408665,0.00034999,120]
[393530271,1762771838074,-13289.00193474,0.00035,30]
[393530272,1762771838084,-150.0,0.00035,2]
[393530273,1762771838094,-1092.96103469,0.00035,30]
[393530274,1762771838103,-52341.04606095,0.00035,30]
[393530275,1762771838112,-854322.56782168,0.00035,2]
[393530292,1762771838738,-0.00607737,0.00024799,2]
[393530293,1762771838753,-499.99392263,0.00024799,2]
[393530294,1762771838764,-6931.73966449,0.00028384,2]
[393530295,1762771838775,-151.0,0.00033762,31]
[393530296,1762771838785,-151.0,0.00033762,31]
[393530297,1762771838796,-151.0,0.00033762,31]
[393530298,1762771838807,-151.0,0.00033785,31]
[393530299,1762771838817,-151.0,0.00033785,31]
[393530300,1762771838828,-151.0,0.00033785,31]
[393530301,1762771838838,-63046.26641304,0.00035,2]
[393530302,1762771839124,-738.82100178,0.00035,2]
[393530304,1762771840016,-222.64847114,0.000247,2]
[393530305,1762771840026,-233.89005725,0.0003327,2]
[393530324,1762771840690,-83.41233308,0.0003327,2]
[393530326,1762771840700,-270.61025376,0.00033332,2]
[393530327,1762771840710,-151.0,0.00033762,31]
[393530329,1762771840720,-285.565683,0.00033785,31]
[393530331,1762771840730,-81892.3447635,0.00035,2]
[393530333,1762771840739,-11565.02408631,0.00035,30]
[393530335,1762771840749,-222.0,0.00035,30]
[393530337,1762771840758,-151.0,0.00035,31]
[393530339,1762771840767,-151.0,0.00035,31]
[393530340,1762771840776,-151.0,0.00035,31]
[393530342,1762771840786,-151.0,0.00035,31]
[393530344,1762771840796,-151.0,0.00035,31]
[393530346,1762771840806,-151.0,0.00035,31]
[393530348,1762771840815,-351.29402612,0.00035016,5]
[393530349,1762771840824,-1000.0,0.00035023,7]
[393530351,1762771840833,-552.0,0.00035048,13]
[393530353,1762771840843,-1195.2935,0.00035064,2]
[393530355,1762771840852,-178.45,0.00035086,2]
[393530356,1762771840861,-320.31,0.00035088,2]
[393530358,1762771840871,-7685.68005439,0.000351,30]
[393530360,1762771840880,-500.0,0.00035141,30]
[393530361,1762771840889,-1059.12384925,0.0003516,7]
[393530363,1762771840898,-500.0,0.00035161,120]
[393530364,1762771840907,-500.0,0.00035161,120]
[393530366,1762771840916,-531.98503967,0.00035161,120]
[393530367,1762771840925,-500.0,0.00035161,120]
[393530369,1762771840935,-500.0,0.00035163,2]
[393530371,1762771840944,-500.0,0.00035163,2]
[393530372,1762771840954,-500.0,0.00035163,2]
[393530373,1762771840963,-500.0,0.00035163,2]
[393530374,1762771840972,-500.0,0.00035163,2]
[393530375,1762771840981,-500.0,0.00035163,2]
[393530376,1762771840990,-500.0,0.00035163,2]
[393530377,1762771840999,-500.0,0.00035163,2]
[393530378,1762771841008,-500.0,0.00035163,2]
[393530379,1762771841018,-500.0,0.00035163,2]
[393530380,1762771841027,-500.0,0.00035163,2]
[393530381,1762771841037,-339.66629617,0.00035163,2]
[393530382,1762771841047,-811.0,0.00035172,2]
[393530383,1762771841056,-1065.62,0.000352,14]
[393530384,1762771841067,-2000.0,0.00035241,120]
[393530385,1762771841076,-500.0,0.00035241,120]
[393530386,1762771841086,-811.0,0.00035253,2]
[393530387,1762771841095,-500.0,0.00035261,120]
[393530388,1762771841104,-505.8611858,0.00035261,120]
[393530389,1762771841114,-206.57,0.00035261,120]
[393530390,1762771841124,-500.0,0.00035261,7]
[393530391,1762771841133,-532.06905087,0.00035261,30]
[393530392,1762771841142,-500.0,0.00035261,120]
[393530393,1762771841152,-15683.41,0.000353,14]
[393530394,1762771841162,-1363.48009016,0.000353,2]
[393530395,1762771841178,-304.9245,0.00029459,2]
[393530404,1762771843124,-6626.81516449,0.00029459,2]
[393530405,1762771843134,-1030.35990984,0.000353,2]
[393530406,1762771843145,-500.0,0.00035307,120]
[393530407,1762771843155,-500.0,0.00035307,120]
[393530408,1762771843164,-157.37982075,0.00035315,30]
[393530409,1762771843174,-187.36,0.00035319,2]
[393530410,1762771843184,-500.0,0.00035361,120]
[393530411,1762771843193,-500.0,0.00035361,120]
[393530412,1762771843203,-500.0,0.00035361,120]
[393530413,1762771843215,-500.0,0.00035361,120]
[393530414,1762771843224,-500.0,0.00035361,120]
[393530415,1762771843233,-150.0,0.00035361,7]
[393530416,1762771843242,-150.0,0.00035361,7]
[393530417,1762771843251,-150.0,0.00035361,7]
[393530418,1762771843260,-150.0,0.00035361,7]
[393530419,1762771843269,-150.20798651,0.00035361,7]
[393530420,1762771843279,-150.0,0.00035361,7]
[393530421,1762771843288,-150.0,0.00035361,7]
[393530422,1762771843297,-150.0,0.00035361,7]
[393530423,1762771843307,-150.0,0.00035361,7]
[393530424,1762771843316,-150.0,0.00035361,7]
[393530425,1762771843326,-150.0,0.00035361,7]
[393530426,1762771843335,-150.0,0.00035361,7]
[393530427,1762771843348,-150.0,0.00035361,7]
[393530428,1762771843363,-150.0,0.00035361,7]
[393530429,1762771843372,-150.0,0.00035361,7]
[393530430,1762771843382,-9583.1518621,0.00035364,2]
[393530431,1762771843391,-178.13537007,0.000354,2]
[393530432,1762771843402,-178.13537005,0.000354,2]
[393530433,1762771843415,-178.13537005,0.000354,2]
[393530434,1762771843424,-178.13537005,0.000354,2]
[393530435,1762771843434,-171.31,0.00035405,2]
[393530436,1762771843443,-500.0,0.00035415,30]
[393530437,1762771843454,-205.55878542,0.00035451,2]
[393530438,1762771843465,-242.0,0.00035501,2]
[393530439,1762771843474,-188.41194953,0.00035501,2]
[393530440,1762771843486,-150.0,0.00035507,7]
[393530441,1762771843497,-150.0,0.00035518,7]
[393530442,1762771843506,-168.0,0.00035529,2]
[393530443,1762771843516,-163.76,0.00035583,2]
[393530444,1762771843527,-150.0,0.00035592,7]
[393530445,1762771843537,-150.0,0.00035592,7]
[393530446,1762771843547,-150.0,0.00035592,7]
[393530447,1762771843558,-150.0,0.00035607,7]
[393530448,1762771843568,-811.0,0.00035615,2]
[393530449,1762771843578,-201.74293213,0.00035616,2]
[393530450,1762771843587,-150.0,0.00035652,7]
[393530451,1762771843597,-177.04,0.00035666,2]
[393530452,1762771843606,-177.04,0.00035666,2]
[393530453,1762771843616,-340.55,0.00035666,2]
[393530454,1762771843626,-177.04,0.00035666,2]
[393530455,1762771843636,-177.04,0.00035666,2]
[393530456,1762771843645,-177.04,0.00035666,2]
[393530457,1762771843654,-168.0,0.0003567,2]
[393530458,1762771843663,-168.0,0.00035671,2]
[393530459,1762771843673,-150.0,0.00035675,7]
[393530460,1762771843683,-500.0,0.00035689,30]
[393530461,1762771843692,-500.0,0.00035761,120]
[393530462,1762771843702,-600.0,0.00035771,120]
[393530463,1762771843713,-795.26656832,0.00035771,120]
[393530464,1762771843723,-500.0,0.00035771,30]
[393530465,1762771843732,-500.0,0.00035771,30]
[393530466,1762771843742,-500.0,0.00035771,120]
[393530467,1762771843751,-529.41350702,0.00035771,120]
[393530468,1762771843760,-500.0,0.00035781,30]
[393530469,1762771843770,-150.0,0.00035798,7]
[393530470,1762771843780,-394.0,0.000358,2]
[393530471,1762771843790,-207.65180932,0.00035822,2]
[393530472,1762771843799,-150.0,0.00035823,7]
[393530473,1762771843808,-150.0,0.00035823,7]
[393530474,1762771843818,-150.0,0.00035823,7]
[393530475,1762771843828,-2000.2459,0.00035824,3]
[393530476,1762771843837,-2000.0,0.00035824,3]
[393530477,1762771843847,-150.0,0.00035832,7]
[393530478,1762771843857,-150.0,0.00035852,7]
[393530479,1762771843866,-150.0,0.00035852,7]
[393530480,1762771843876,-85587.70970035,0.0003587,30]
[393530481,1762771843885,-600.0,0.00035888,120]
[393530482,1762771843894,-500.0,0.00035888,120]
[393530483,1762771843904,-500.0,0.00035892,120]
[393530484,1762771843913,-500.0,0.00035892,120]
[393530485,1762771843922,-500.0,0.00035892,7]
[393530486,1762771843932,-500.0,0.00035892,30]
[393530487,1762771843942,-641.29723553,0.00035892,120]
[393530488,1762771843952,-500.0,0.00035892,30]
[393530489,1762771843962,-500.0,0.00035892,120]
[393530490,1762771843972,-914.0,0.00035893,2]
[393530491,1762771843981,-500.0,0.00035893,120]
[393530492,1762771843990,-500.0,0.00035893,120]
[393530493,1762771844000,-500.0,0.00035893,7]
[393530494,1762771844010,-500.0,0.00035893,30]
[393530495,1762771844020,-500.0,0.00035893,120]
[393530496,1762771844029,-525.61822093,0.00035893,120]
[393530497,1762771844039,-15272.60257354,0.000359,2]
[393530498,1762771844049,-3287.35818071,0.000359,2]
[393530499,1762771844059,-151.37460098,0.000359,7]
[393530500,1762771844069,-269.83911071,0.000359,2]
[393530501,1762771844080,-173.1666016,0.00035914,30]
[393530502,1762771844090,-173.1666016,0.00035914,30]
[393530503,1762771844102,-173.1666016,0.00035914,30]
[393530504,1762771844111,-173.16,0.00035914,30]
[393530505,1762771844121,-161.6221615,0.00035914,30]
[393530506,1762771844131,-161.6221615,0.00035914,30]
[393530507,1762771844141,-161.6221615,0.00035914,30]
[393530508,1762771844151,-161.6221615,0.00035914,30]
[393530509,1762771844160,-161.6221615,0.00035914,30]
[393530510,1762771844169,-9583.1518621,0.00035914,2]
[393530511,1762771844179,-150.0,0.00035922,7]
[393530512,1762771844188,-150.0,0.00035943,7]
[393530513,1762771844197,-500.0,0.00035963,30]
[393530514,1762771844208,-500.0,0.00035973,120]
[393530515,1762771844226,-500.0,0.00035973,7]
[393530516,1762771844236,-500.0,0.00035973,30]
[393530517,1762771844245,-500.0,0.00035973,120]
[393530518,1762771844254,-150.0,0.00035989,30]
[393530519,1762771844263,-150.0,0.00035989,30]
[393530520,1762771844273,-150.0,0.00035989,30]
[393530521,1762771844282,-187.6061048,0.00035989,30]
[393530522,1762771844291,-150.0,0.0003599,7]
[393530523,1762771844300,-1000.0,0.00036,120]
[393530524,1762771844309,-1927.12610635,0.00036,30]
[393530525,1762771844319,-3700.25739445,0.00036,2]
[393530526,1762771844328,-150.0,0.00036,2]
[393530527,1762771844338,-2861.19,0.00036,60]
[393530528,1762771844348,-467.78418003,0.00036,5]
[393530529,1762771844363,-517.4162361,0.00036004,2]
[393530530,1762771844380,-231.24993958,0.00036013,120]
[393530531,1762771844396,-500.0,0.00036013,7]
[393530532,1762771844410,-500.0,0.00036013,7]
[393530533,1762771844419,-500.0,0.00036013,7]
[393530534,1762771844428,-500.0,0.00036013,7]
[393530535,1762771844438,-500.0,0.00036013,7]
[393530536,1762771844447,-422.11909048,0.00036013,7]
[393530537,1762771844458,-500.0,0.00036013,120]
[393530538,1762771844467,-511.03757913,0.00036013,120]
[393530539,1762771844477,-1000000.0,0.00036014,30]
[393530540,1762771844488,-1000000.0,0.00036014,30]
[393530541,1762771844498,-151.0,0.00036014,31]
[393530542,1762771844506,-151.0,0.00036014,31]
[393530543,1762771844516,-150.0,0.00036016,7]
[393530544,1762771844525,-1000.0,0.00036023,2]
[393530545,1762771844535,-5266.53542702,0.00036051,30]
[393530546,1762771844545,-150.0,0.00036054,7]
[393530547,1762771844554,-150.0,0.00036054,7]
[393530548,1762771844565,-150.0,0.00036054,7]
[393530549,1762771844574,-150.0,0.00036089,7]
[393530550,1762771844584,-150.0,0.00036098,7]
[393530551,1762771844594,-15683.41,0.000361,14]
[393530552,1762771844604,-150.0,0.00036147,7]
[393530553,1762771844613,-150.0,0.00036147,7]
[393530554,1762771844623,-811.0,0.00036177,120]
[393530555,1762771844632,-2393.84,0.000362,2]
[393530556,1762771844642,-161.6221615,0.00036211,30]
[393530557,1762771844652,-150.0,0.00036234,7]
[393530558,1762771844661,-500.0,0.00036237,30]
[393530559,1762771844670,-320.31,0.00036271,2]
[393530560,1762771844679,-150.0,0.00036285,7]
[393530561,1762771844689,-150.0,0.00036285,7]
[393530562,1762771844698,-150.0,0.00036285,7]
[393530563,1762771844707,-150.0,0.00036304,7]
[393530564,1762771844717,-9816.16,0.00036304,2]
[393530565,1762771844726,-150.0,0.00036343,7]
[393530566,1762771844735,-150.0,0.00036343,7]
[393530567,1762771844745,-150.0,0.0003638,7]
[393530568,1762771844754,-150.0,0.00036461,7]
[393530569,1762771844763,-188.41194953,0.00036466,2]
[393530570,1762771844773,-150.0,0.00036484,7]
[393530571,1762771844782,-202.70971485,0.000365,120]
[393530572,1762771844793,-811.0,0.0003651,2]
[393530573,1762771844802,-500.0,0.00036511,30]
[393530574,1762771844811,-150.0,0.00036517,7]
[393530575,1762771844821,-150.0,0.00036517,7]
[393530576,1762771844830,-150.0,0.00036517,7]
[393530577,1762771844839,-500.0,0.00036521,5]
[393530578,1762771844848,-175.53,0.00036524,60]
[393530579,1762771844857,-150.0,0.00036525,7]
[393530580,1762771844867,-193.92,0.00036528,60]
[393530581,1762771844877,-25000.0,0.00036531,2]
[393530582,1762771844887,-1316.0,0.00036556,2]
[393530583,1762771844897,-608.0,0.00036556,2]
[393530584,1762771844907,-574.0,0.00036556,2]
[393530585,1762771844916,-820.0,0.00036556,2]
[393530586,1762771844925,-1597.0,0.00036556,2]
[393530587,1762771844935,-813.0,0.00036556,2]
[393530588,1762771844944,-1274.0,0.00036556,2]
[393530589,1762771844953,-2142.0,0.00036556,2]
[393530590,1762771844963,-150.0,0.00036589,7]
[393530591,1762771844973,-193.77881067,0.00036601,60]
[393530592,1762771844982,-2500.16,0.00036616,2]
[393530593,1762771844993,-150.0,0.00036618,7]
[393530594,1762771845003,-175.53,0.00036624,60]
[393530595,1762771845012,-699.1,0.00036628,2]
[393530596,1762771845022,-699.1,0.00036628,2]
[393530597,1762771845031,-699.1,0.00036628,2]
[393530598,1762771845040,-697.42,0.00036628,2]
[393530599,1762771845050,-193.92,0.00036628,60]
[393530600,1762771845059,-150.0,0.00036671,7]
[393530601,1762771845068,-150.0,0.00036671,7]
[393530602,1762771845077,-150.0,0.00036671,7]
[393530603,1762771845087,-175.53,0.00036724,60]
[393530604,1762771845096,-25000.0,0.0003673,2]
[393530605,1762771845105,-150.0,0.00036748,7]
[393530606,1762771845113,-150.0,0.00036748,7]
[393530607,1762771845123,-150.0,0.00036748,7]
[393530608,1762771845133,-205.55878542,0.00036754,2]
[393530609,1762771845143,-1104.94,0.0003677,30]
[393530610,1762771845152,-150.0,0.00036775,7]
[393530611,1762771845161,-500.0,0.00036785,30]
[393530612,1762771845170,-171.31,0.00036808,2]
[393530613,1762771845179,-150.0,0.00036816,7]
[393530614,1762771845188,-175.53,0.00036824,60]
[393530615,1762771845197,-150.0,0.00036834,7]
[393530616,1762771845207,-150.0,0.00036834,7]
[393530617,1762771845217,-15683.41,0.000369,14]
[393530618,1762771845231,-175.56305774,0.00036924,60]
[393530619,1762771845240,-150.0,0.00036933,7]
[393530620,1762771845250,-150.0,0.00036933,7]
[393530621,1762771845259,-150.0,0.00036962,7]
[393530622,1762771845268,-150.0,0.00036979,7]
[393530623,1762771845277,-150.0,0.00036979,7]
[393530624,1762771845286,-150.0,0.00036979,7]
[393530625,1762771845295,-161.6221615,0.00036998,30]
[393530626,1762771845305,-12034.79506168,0.00037,30]
[393530627,1762771845313,-10818.86198685,0.00037,30]
[393530628,1762771845324,-150.0,0.00037,2]
[393530629,1762771845333,-606.987796,0.00037,120]
[393530630,1762771845343,-150.0,0.00037045,7]
[393530631,1762771845352,-500.0,0.00037059,30]
[393530632,1762771845361,-2000.0,0.00037064,120]
[393530633,1762771845370,-150.0,0.0003708,7]
[393530634,1762771845547,-187.36,0.00037085,2]
[393530635,1762771845557,-150.0,0.0003709,7]
[393530636,1762771845567,-2393.84,0.000371,2]
[393530637,1762771845577,-150.0,0.00037107,7]
[393530638,1762771845586,-150.0,0.0003721,7]
[393530639,1762771845596,-150.0,0.0003721,7]
[393530640,1762771845607,-150.0,0.0003721,7]
[393530641,1762771845619,-150.0,0.00037247,7]
[393530642,1762771845629,-150.0,0.00037253,7]
[393530643,1762771845638,-5064.14238,0.00037299,30]
[393530644,1762771845648,-170.63341893,0.000373,5]
[393530645,1762771845660,-150.0,0.00037326,7]
[393530646,1762771845669,-150.0,0.00037326,7]
[393530647,1762771845678,-150.0,0.00037326,7]
[393530648,1762771845688,-150.0,0.00037326,7]
[393530649,1762771845698,-500.0,0.00037333,30]
[393530650,1762771845707,-150.0,0.00037385,120]
[393530651,1762771845716,-150.0,0.00037398,7]
[393530652,1762771845726,-150.0,0.00037404,7]
[393530653,1762771845736,-188.41194953,0.0003743,2]
[393530654,1762771845745,-180.33,0.00037431,120]
[393530655,1762771845754,-150.0,0.00037441,7]
[393530656,1762771845764,-150.0,0.00037441,7]
[393530657,1762771845773,-150.0,0.00037441,7]
[393530658,1762771845783,-150.0,0.00037544,7]
[393530659,1762771845792,-150.0,0.00037561,7]
[393530660,1762771845802,-150.0,0.00037571,7]
[393530661,1762771845812,-150.0,0.00037606,7]
[393530662,1762771845821,-500.0,0.00037607,30]
[393530663,1762771845831,-3287.35818071,0.0003763,2]
[393530664,1762771845840,-269.83911071,0.0003763,2]
[393530665,1762771845849,-150.0,0.00037672,7]
[393530666,1762771845859,-150.0,0.00037672,7]
[393530667,1762771845869,-150.0,0.00037672,7]
[393530669,1762771845879,-150.0,0.00037689,7]
[393530670,1762771845888,-15683.41,0.000377,14]
[393530671,1762771845897,-5064.14238,0.00037718,30]
[393530672,1762771845907,-150.0,0.00037718,7]
[393530673,1762771845917,-150.0,0.00037718,7]
[393530674,1762771845927,-161.6221615,0.00037785,30]
[393530675,1762771845937,-150.0,0.00037801,120]
[393530676,1762771845947,-150.0,0.00037817,7]
[393530677,1762771845956,-150.0,0.00037817,7]
[393530678,1762771845966,-150.0,0.00037835,7]
[393530679,1762771845975,-150.0,0.00037876,7]
[393530680,1762771845984,-224.23843113,0.000379,120]
[393530681,1762771845994,-150.0,0.00037903,7]
[393530682,1762771846003,-150.0,0.00037903,7]
[393530683,1762771846012,-150.0,0.00037903,7]
[393530684,1762771846022,-150.0,0.00037961,120]
[393530685,1762771846031,-150.0,0.0003798,7]
[393530686,1762771846041,-150.0,0.0003798,7]
[393530687,1762771846050,-150.0,0.0003798,7]
[393530688,1762771846059,-800.0,0.00038,6]
[393530689,1762771846069,-4411.0,0.00038,120]
[393530690,1762771846078,-37481.19768968,0.00038,30]
[393530691,1762771846087,-150.0,0.00038,2]
[393530692,1762771846097,-2393.84,0.00038,2]
[393530694,1762771846107,-2015.9817,0.00038,2]
[393530696,1762771846116,-150.0,0.00038,3]
[393530698,1762771846125,-500.0,0.00038003,120]
[393530700,1762771846135,-150.0,0.00038033,7]
[393530702,1762771846144,-205.55878542,0.00038057,2]
[393530704,1762771846153,-150.0,0.00038062,7]
[393530706,1762771846162,-534.0,0.00038085,20]
[393530708,1762771846172,-150.0,0.00038124,120]
[393530710,1762771846182,-2000.0,0.00038124,120]
[393530711,1762771846191,-150.0,0.00038126,7]
[393530712,1762771846200,-150.0,0.00038134,7]
[393530713,1762771846210,-150.0,0.00038134,7]
[393530714,1762771846220,-150.0,0.00038134,7]
[393530715,1762771846229,-2000.0,0.00038164,3]
[393530716,1762771846239,-1455.1904,0.00038164,3]
[393530717,1762771846254,-150.0,0.00038167,7]
[393530718,1762771846263,-150.0,0.0003819,7]
[393530719,1762771846273,-1065.62,0.000382,14]
[393530720,1762771846282,-171.31,0.00038211,2]
[393530721,1762771846291,-236.16078945,0.0003825,30]
[393530722,1762771846302,-150.0,0.0003825,30]
[393530723,1762771846311,-8070.07793238,0.0003825,30]
[393530724,1762771846321,-150.0,0.0003825,30]
[393530725,1762771846331,-202.19229776,0.0003825,30]
[393530726,1762771846341,-150.0,0.00038271,7]
[393530727,1762771846350,-36503.1831646,0.00038275,2]
[393530728,1762771846364,-52075.47290016,0.00038275,2]
[393530729,1762771846374,-5744.18674648,0.0003828,90]
[393530730,1762771846383,-163.76,0.00038296,2]
[393530731,1762771846392,-258.76779165,0.000383,5]
[393530732,1762771846404,-150.0,0.00038308,7]
[393530733,1762771846416,-150.0,0.00038308,7]
[393530734,1762771846426,-150.0,0.00038347,7]
[393530735,1762771846435,-170.45164663,0.00038356,2]
[393530736,1762771846446,-500.0,0.00038356,2]
[393530737,1762771846456,-500.0,0.00038356,2]
[393530738,1762771846465,-500.0,0.00038356,2]
[393530739,1762771846476,-500.0,0.00038356,2]
[393530740,1762771846487,-500.0,0.00038356,2]
[393530741,1762771846497,-500.0,0.00038356,2]
[393530742,1762771846506,-500.0,0.00038356,2]
[393530743,1762771846515,-500.0,0.00038356,2]
[393530744,1762771846524,-500.0,0.00038356,2]
[393530745,1762771846534,-500.0,0.00038356,2]
[393530746,1762771846544,-500.0,0.00038356,2]
[393530747,1762771846553,-500.0,0.00038356,2]
[393530748,1762771846563,-500.0,0.00038356,2]
[393530749,1762771846573,-500.0,0.00038356,2]
[393530750,1762771846584,-500.0,0.00038356,2]
[393530751,1762771846594,-500.0,0.00038356,2]
[393530752,1762771846604,-500.0,0.00038356,2]
[393530753,1762771846613,-500.0,0.00038356,2]
[393530754,1762771846623,-500.0,0.00038356,2]
[393530755,1762771846633,-446.48208693,0.00038356,2]
[393530756,1762771846643,-538.19880616,0.00038356,30]
[393530757,1762771846663,-519.44642339,0.00038356,2]
[393530758,1762771846672,-703.01,0.00038356,2]
[393530759,1762771846681,-703.01,0.00038356,2]
[393530760,1762771846691,-703.01,0.00038356,2]
[393530761,1762771846701,-703.01,0.00038356,2]
[393530762,1762771846711,-703.01,0.00038356,2]
[393530763,1762771846720,-703.01,0.00038356,2]
[393530764,1762771846730,-703.01,0.00038356,2]
[393530765,1762771846739,-703.01,0.00038356,2]
[393530766,1762771846748,-703.01,0.00038356,2]
[393530767,1762771846758,-703.01,0.00038356,2]
[393530768,1762771846767,-703.01,0.00038356,2]
[393530769,1762771846776,-703.01,0.00038356,2]
[393530770,1762771846786,-703.01,0.00038356,2]
[393530771,1762771846796,-703.01,0.00038356,2]
[393530772,1762771846805,-703.01,0.00038356,2]
[393530773,1762771846815,-703.01,0.00038356,2]
[393530774,1762771846825,-703.01,0.00038356,2]
[393530775,1762771846834,-703.01,0.00038356,2]
[393530776,1762771846843,-703.01,0.00038356,2]
[393530777,1762771846853,-703.01,0.00038356,2]
[393530778,1762771846863,-703.01,0.00038356,2]
[393530779,1762771846873,-703.01,0.00038356,2]
[393530780,1762771846882,-703.01,0.00038356,2]
[393530781,1762771846892,-703.16278872,0.00038356,2]
[393530782,1762771846903,-300.0,0.00038356,2]
[393530783,1762771846914,-300.0,0.00038356,2]
[393530784,1762771846923,-300.0,0.00038356,2]
[393530785,1762771846932,-300.0,0.00038356,2]
[393530786,1762771846945,-300.0,0.00038356,2]
[393530787,1762771846954,-300.0,0.00038356,2]
[393530788,1762771846963,-300.0,0.00038356,2]
[393530789,1762771846973,-300.0,0.00038356,2]
[393530790,1762771846982,-1286.7423,0.00038356,7]
[393530791,1762771846991,-1286.7423,0.00038356,7]
[393530792,1762771847002,-1286.7423,0.00038356,7]
[393530793,1762771847011,-1286.7423,0.00038356,7]
[393530794,1762771847021,-1286.7423,0.00038356,7]
[393530795,1762771847030,-1286.7423,0.00038356,7]
[393530796,1762771847039,-1286.7423,0.00038356,7]
[393530797,1762771847049,-1286.7423,0.00038356,7]
[393530798,1762771847059,-1286.7423,0.00038356,7]
[393530799,1762771847069,-1286.7423,0.00038356,7]
[393530800,1762771847079,-1286.7423,0.00038356,7]
[393530801,1762771847089,-1286.7423,0.00038356,7]
[393530802,1762771847098,-1286.7423,0.00038356,7]
[393530803,1762771847108,-1286.7423,0.00038356,7]
[393530804,1762771847118,-1286.7423,0.00038356,7]
[393530805,1762771847128,-1286.7423,0.00038356,7]
[393530806,1762771847137,-1286.7423,0.00038356,7]
[393530807,1762771847146,-1286.7423,0.00038356,7]
[393530808,1762771847155,-1286.7423,0.00038356,7]
[393530809,1762771847164,-1286.742305,0.00038356,7]
[393530810,1762771847174,-150.0,0.00038366,7]
[393530811,1762771847183,-150.0,0.00038366,7]
[393530812,1762771847192,-150.0,0.00038366,7]
[393530813,1762771847202,-188.41194953,0.00038395,2]
[393530814,1762771847212,-9477.40597512,0.000384,120]
[393530815,1762771847221,-150.0,0.00038417,7]
[393530816,1762771847231,-1099.16969862,0.0003846,10]
[393530817,1762771847241,-1099.16969855,0.0003846,10]
[393530818,1762771847251,-1099.16969855,0.0003846,10]
[393530819,1762771847260,-1099.16969855,0.0003846,10]
[393530820,1762771847270,-1099.16969855,0.0003846,10]